fUST/lending_fUST_20240911
["ID","MTS","AMOUNT","RATE_DAILY","PERIOD"]
[337722345,1725987120415,-500.0,0.00022467,2]
[337722346,1725987120424,-642.34,0.00022467,2]
[337722347,1725987120434,-791.11,0.00022467,2]
[337722348,1725987120443,-1895.41,0.00022467,2]
[337722349,1725987120453,-980.57,0.00022467,2]
[337722350,1725987120463,-500.0,0.00022467,2]
[337722351,1725987120473,-2400.44,0.00022467,2]
[337722352,1725987120483,-1124.28,0.00022467,2]
[337722353,1725987120493,-672.56,0.00022467,2]
[337722354,1725987120503,-571.17,0.00022467,2]
[337722355,1725987120512,-808.61,0.00022467,2]
[337722356,1725987120523,-500.0,0.00022467,2]
[337722357,1725987120534,-1199.35,0.00022467,2]
[337722358,1725987120545,-1033.55,0.00022467,2]
[337722359,1725987120557,-1786.34,0.00022467,2]
[337722360,1725987120567,-857.51,0.00022467,2]
[337722361,1725987120577,-500.0,0.00022467,2]
[337722362,1725987120587,-500.0,0.00022467,2]
[337722363,1725987120597,-742.91,0.00022467,2]
[337722364,1725987120609,-606.58,0.00022467,2]
[337722365,1725987120620,-679.35,0.00022467,2]
[337722366,1725987120630,-678.54,0.0002247,2]
[337722367,1725987120640,-2206.43598465,0.00022519,2]
[337722368,1725987120652,-823.0,0.00022589,2]
[337722369,1725987120663,-1047.18,0.00022737,2]
[337722370,1725987120672,-553.54,0.00022739,2]
[337722371,1725987120683,-2363.4,0.00022739,2]
[337722372,1725987120694,-977.86,0.00022739,2]
[337722373,1725987120705,-1813.25,0.00022739,2]
[337722374,1725987120716,-1983.67,0.00022739,2]
[337722375,1725987120726,-585.68,0.00022739,2]
[337722376,1725987120735,-2056.03,0.00022739,2]
[337722377,1725987120745,-1041.82,0.00022739,2]
[337722378,1725987120755,-890.94,0.00022739,2]
[337722379,1725987120764,-500.0,0.00022739,2]
[337722380,1725987120774,-2908.31,0.00022739,2]
[337722381,1725987120783,-570.37,0.00022739,2]
[337722382,1725987120793,-43984.4,0.00022739,2]
[337722383,1725987120803,-500.0,0.00022739,2]
[337722384,1725987120813,-2135.99,0.00022739,2]
[337722385,1725987120822,-3517.34,0.00022739,2]
[337722386,1725987120833,-539.11,0.00022739,2]
[337722387,1725987120844,-2575.2,0.00022739,2]
[337722388,1725987120855,-7865.92,0.00022739,2]
[337722389,1725987120867,-500.0,0.00022739,2]
[337722390,1725987120876,-1299.19,0.00022739,2]
[337722391,1725987120887,-3508.18,0.00022739,2]
[337722392,1725987120900,-1213.25,0.00022739,2]
[337722393,1725987120909,-897.95,0.00022739,2]
[337722394,1725987120920,-2680.58,0.00022739,2]
[337722395,1725987120930,-867.86,0.00022739,2]
[337722396,1725987120940,-539.4,0.00022739,2]
[337722397,1725987120951,-3969.43,0.00022739,2]
[337722398,1725987120962,-1187.95,0.00022739,2]
[337722399,1725987120973,-8904.62,0.00022739,2]
[337722400,1725987120983,-1301.09,0.00022739,2]
[337722401,1725987120992,-1116.76,0.00022739,2]
[337722402,1725987121002,-2535.01,0.00022739,2]
[337722403,1725987121011,-1737.23,0.00022739,2]
[337722404,1725987121021,-1452.81,0.00022739,2]
[337722405,1725987121030,-3779.0,0.00022739,2]
[337722406,1725987121040,-565.66,0.0002274,2]
[337722407,1725987121050,-920.25,0.0002274,2]
[337722408,1725987121060,-500.0,0.0002274,2]
[337722409,1725987121069,-1099.81,0.0002274,2]
[337722410,1725987121079,-1604.71,0.0002274,2]
[337722411,1725987121088,-2210.6,0.0002274,2]
[337722412,1725987121098,-1189.48,0.0002274,2]
[337722413,1725987121107,-663.24,0.0002274,2]
[337722414,1725987121116,-1038.53,0.0002274,2]
[337722415,1725987121126,-1169.08,0.0002274,2]
[337722416,1725987121136,-505.5,0.0002274,2]
[337722417,1725987121146,-1822.14,0.0002274,2]
[337722418,1725987121158,-720.07,0.0002274,2]
[337722419,1725987121168,-2913.8,0.0002274,2]
[337722420,1725987121177,-1955.94,0.0002274,2]
[337722421,1725987121187,-742.92,0.0002274,2]
[337722422,1725987121196,-609.62,0.0002274,2]
[337722423,1725987121206,-1713.89,0.0002274,2]
[337722424,1725987121216,-971.86,0.0002274,2]
[337722425,1725987121225,-2284.58,0.0002274,2]
[337722426,1725987121234,-1021.87,0.0002274,2]
[337722427,1725987121244,-792.09,0.0002274,2]
[337722428,1725987121254,-1816.79,0.0002274,2]
[337722429,1725987121263,-720.94,0.0002274,2]
[337722430,1725987121273,-753.23,0.0002274,2]
[337722431,1725987121282,-1933.6,0.0002274,2]
[337722432,1725987121292,-1008.22,0.0002274,2]
[337722433,1725987121451,-1583.17,0.0002274,2]
[337722434,1725987121462,-1938.09,0.0002274,2]
[337722435,1725987121471,-1806.64,0.0002274,2]
[337722436,1725987121481,-9481.22,0.0002274,2]
[337722437,1725987121491,-589.44,0.0002274,2]
[337722438,1725987121501,-1240.8,0.0002274,2]
[337722439,1725987121510,-946.63,0.0002274,2]
[337722440,1725987121520,-38864.62,0.0002274,2]
[337722441,1725987121530,-2044.37,0.0002274,2]
[337722442,1725987121540,-2013.95,0.0002274,2]
[337722443,1725987121549,-53987.64,0.0002274,2]
[337722444,1725987121559,-4713.36,0.0002274,2]
[337722445,1725987121568,-535.49,0.0002274,2]
[337722446,1725987121578,-965.38,0.0002274,2]
[337722447,1725987121588,-806.04,0.0002274,2]
[337722448,1725987121597,-2582.53,0.0002274,2]
[337722449,1725987121607,-677.86,0.0002274,2]
[337722450,1725987121617,-771.86,0.0002274,2]
[337722451,1725987121626,-1718.58,0.0002274,2]
[337722452,1725987121636,-1132.77,0.0002274,2]
[337722453,1725987121646,-2709.96,0.0002274,2]
[337722454,1725987121656,-652.93,0.0002274,2]
[337722455,1725987121666,-5158.88,0.0002274,2]
[337722456,1725987121676,-1065.08,0.00022741,2]
[337722457,1725987121685,-660.04,0.00022741,2]
[337722458,1725987121694,-1568.6,0.00022741,2]
[337722459,1725987121704,-792.17,0.00022741,2]
[337722460,1725987121713,-500.0,0.00022741,2]
[337722461,1725987121722,-904.46,0.00022741,2]
[337722462,1725987121732,-625.22,0.00022741,2]
[337722463,1725987121741,-536.45,0.00022741,2]
[337722464,1725987121751,-502.6,0.00022741,2]
[337722465,1725987121760,-1049.86,0.00022741,2]
[337722466,1725987121770,-1076.1,0.00022741,2]
[337722467,1725987121779,-307.32072683,0.00022741,2]
[337722468,1725987121789,-629.08,0.00022741,2]
[337722469,1725987121798,-712.42,0.00022741,2]
[337722470,1725987121807,-852.74,0.00022741,2]
[337722471,1725987121818,-800.96,0.00022741,2]
[337722472,1725987121827,-649.67,0.00022741,2]
[337722473,1725987121837,-588.79,0.00022741,2]
[337722474,1725987121847,-1531.75,0.00022741,2]
[337722475,1725987121857,-677.0,0.00022741,2]
[337722476,1725987121867,-582.35,0.00022741,2]
[337722477,1725987121877,-1661.25,0.00022741,2]
[337722478,1725987121886,-902.12,0.00022741,2]
[337722479,1725987121899,-1161.67,0.00022741,2]
[337722480,1725987121910,-1545.8,0.00022741,2]
[337722481,1725987121920,-1031.96,0.00022741,2]
[337722482,1725987121930,-1005.54,0.00022741,2]
[337722483,1725987121942,-801.25,0.00022741,2]
[337722484,1725987121953,-682.45,0.00022741,2]
[337722485,1725987121964,-1528.95,0.00022741,2]
[337722486,1725987121975,-686.42,0.00022741,2]
[337722487,1725987121985,-3196.6,0.00022741,2]
[337722488,1725987121994,-1720.38,0.00022741,2]
[337722489,1725987122004,-580.2,0.00022741,2]
[337722490,1725987122014,-2053.93,0.00022741,2]
[337722491,1725987122024,-1653.22,0.00022741,2]
[337722492,1725987122034,-2581.4,0.00022741,2]
[337722493,1725987122056,-500.0,0.00022741,2]
[337722494,1725987122067,-582.87,0.00022741,2]
[337722495,1725987122079,-665.52,0.00022741,2]
[337722496,1725987122090,-624.21,0.00022741,2]
[337722497,1725987122100,-796.18,0.00022741,2]
[337722498,1725987122112,-519.46549594,0.00022741,2]
[337722499,1725987122122,-1602.56,0.00022741,2]
[337722500,1725987122133,-1153.39,0.00022741,2]
[337722501,1725987122143,-979.44,0.00022741,2]
[337722502,1725987122153,-629.96,0.00022741,2]
[337722503,1725987122164,-931.29,0.00022741,2]
[337722504,1725987122174,-1387.23,0.00022741,2]
[337722505,1725987122184,-516.8,0.00022741,2]
[337722506,1725987122194,-1249.15,0.00022741,2]
[337722507,1725987122205,-507.63,0.00022741,2]
[337722508,1725987122215,-3108.36,0.00022741,2]
[337722509,1725987122226,-1950.86,0.00022741,2]
[337722510,1725987122236,-513.58,0.00022741,2]
[337722511,1725987122247,-1468.78,0.00022741,2]
[337722512,1725987122258,-4251.41,0.00022741,2]
[337722513,1725987122268,-818.77,0.00022741,2]
[337722514,1725987122278,-305.30728951,0.00022741,2]
[337722515,1725987122289,-500.0,0.00022741,2]
[337722516,1725987122299,-547.21,0.00022741,2]
[337722517,1725987122310,-889.36,0.00022741,2]
[337722518,1725987122320,-948.67,0.00022741,2]
[337722519,1725987122330,-653.85,0.00022741,2]
[337722520,1725987122340,-527.0,0.00022741,2]
[337722521,1725987122349,-1596.56,0.00022741,2]
[337722522,1725987122361,-626.02,0.00022741,2]
[337722523,1725987122372,-553.2,0.00022741,2]
[337722524,1725987122382,-848.19,0.00022741,2]
[337722525,1725987122392,-882.16,0.00022741,2]
[337722526,1725987122402,-578.17,0.00022741,2]
[337722527,1725987122412,-841.44,0.00022741,2]
[337722528,1725987122423,-500.0,0.00022741,2]
[337722529,1725987122434,-642.34,0.00022741,2]
[337722530,1725987122445,-791.11,0.00022741,2]
[337722531,1725987122455,-1895.41,0.00022741,2]
[337722532,1725987122465,-980.57,0.00022741,2]
[337722533,1725987122475,-489.78847095,0.00022741,2]
[337722534,1725987122485,-2400.44,0.00022741,2]
[337722535,1725987122496,-1124.28,0.00022741,2]
[337722536,1725987122506,-672.56,0.00022741,2]
[337722537,1725987122516,-571.17,0.00022741,2]
[337722538,1725987122527,-808.61,0.00022741,2]
[337722539,1725987122537,-500.0,0.00022741,2]
[337722540,1725987122548,-1199.35,0.00022741,2]
[337722541,1725987122558,-1033.55,0.00022741,2]
[337722542,1725987122569,-1786.34,0.00022741,2]
[337722543,1725987122580,-857.51,0.00022741,2]
[337722544,1725987122590,-169.18583536,0.00022741,2]
[337722545,1725987122600,-500.0,0.00022741,2]
[337722546,1725987122613,-742.91,0.00022741,2]
[337722547,1725987122623,-606.58,0.00022741,2]
[337722548,1725987122634,-679.35,0.00022741,2]
[337722549,1725987122644,-678.54,0.00022744,2]
[337722550,1725987122654,-166.666666,0.00022944,2]
[337722551,1725987122669,-240.20013067,0.00023,2]
[337722552,1725987122681,-5000.0,0.00023,3]
[337722553,1725987122692,-11435.43128317,0.00023,2]
[337722554,1725987122702,-10000.0,0.00023,2]
[337722555,1725987122712,-200.0,0.00023,2]
[337722556,1725987122723,-200.0,0.00023,2]
[337722557,1725987122734,-1047.18,0.00023011,2]
[337722558,1725987122745,-553.54,0.00023013,2]
[337722559,1725987122756,-2363.4,0.00023013,2]
[337722560,1725987122766,-977.86,0.00023013,2]
[337722561,1725987122776,-1813.25,0.00023013,2]
[337722562,1725987122786,-1983.67,0.00023013,2]
[337722563,1725987122797,-585.68,0.00023013,2]
[337722564,1725987122807,-2056.03,0.00023013,2]
[337722565,1725987122817,-1041.82,0.00023013,2]
[337722566,1725987122828,-890.94,0.00023013,2]
[337722567,1725987122839,-503.57964842,0.00023013,2]
[337722568,1725987122849,-2908.31,0.00023013,2]
[337722569,1725987122860,-570.37,0.00023013,2]
[337722570,1725987122878,-43984.4,0.00023013,2]
[337722571,1725987122890,-447.74561288,0.00023013,2]
[337722572,1725987122902,-2135.99,0.00023013,2]
[337722573,1725987122912,-3517.34,0.00023013,2]
[337722574,1725987122923,-539.11,0.00023013,2]
[337722575,1725987122933,-2575.2,0.00023013,2]
[337722576,1725987122945,-7865.92,0.00023013,2]
[337722577,1725987122955,-500.0,0.00023013,2]
[337722578,1725987122965,-1299.19,0.00023013,2]
[337722579,1725987122976,-3508.18,0.00023013,2]
[337722580,1725987122986,-1213.25,0.00023013,2]
[337722581,1725987122996,-897.95,0.00023013,2]
[337722582,1725987123006,-2680.58,0.00023013,2]
[337722583,1725987123016,-867.86,0.00023013,2]
[337722584,1725987123026,-539.4,0.00023013,2]
[337722585,1725987123036,-3969.43,0.00023013,2]
[337722586,1725987123046,-1187.95,0.00023013,2]
[337722587,1725987123057,-8904.62,0.00023013,2]
[337722588,1725987123067,-1301.09,0.00023013,2]
[337722589,1725987123078,-1116.76,0.00023013,2]
[337722590,1725987123088,-2535.01,0.00023013,2]
[337722591,1725987123099,-1737.23,0.00023013,2]
[337722592,1725987123112,-1452.81,0.00023013,2]
[337722593,1725987123122,-3779.0,0.00023013,2]
[337722594,1725987123133,-565.66,0.00023014,2]
[337722595,1725987123144,-920.25,0.00023014,2]
[337722596,1725987123154,-278.82787322,0.00023014,2]
[337722597,1725987123165,-1099.81,0.00023014,2]
[337722598,1725987123176,-1604.71,0.00023014,2]
[337722599,1725987123187,-2210.6,0.00023014,2]
[337722600,1725987123198,-1189.48,0.00023014,2]
[337722601,1725987123210,-663.24,0.00023014,2]
[337722602,1725987123221,-1038.53,0.00023014,2]
[337722603,1725987123231,-1169.08,0.00023014,2]
[337722604,1725987123241,-505.5,0.00023014,2]
[337722605,1725987123252,-1822.14,0.00023014,2]
[337722606,1725987123263,-720.07,0.00023014,2]
[337722607,1725987123272,-2913.8,0.00023014,2]
[337722608,1725987123282,-1955.94,0.00023014,2]
[337722609,1725987123296,-742.92,0.00023014,2]
[337722610,1725987123307,-609.62,0.00023014,2]
[337722611,1725987123318,-1713.89,0.00023014,2]
[337722612,1725987123328,-971.86,0.00023014,2]
[337722613,1725987123339,-2284.58,0.00023014,2]
[337722614,1725987123349,-1021.87,0.00023014,2]
[337722615,1725987123359,-792.09,0.00023014,2]
[337722616,1725987123371,-1816.79,0.00023014,2]
[337722617,1725987123381,-720.94,0.00023014,2]
[337722618,1725987123391,-753.23,0.00023014,2]
[337722619,1725987123401,-1933.6,0.00023014,2]
[337722620,1725987123411,-1008.22,0.00023014,2]
[337722621,1725987123421,-1583.17,0.00023014,2]
[337722622,1725987123432,-1806.64,0.00023014,2]
[337722623,1725987123442,-1938.09,0.00023014,2]
[337722624,1725987123452,-9481.22,0.00023014,2]
[337722625,1725987123463,-589.44,0.00023014,2]
[337722626,1725987123473,-1240.8,0.00023014,2]
[337722627,1725987123483,-946.63,0.00023014,2]
[337722628,1725987123493,-38864.62,0.00023014,2]
[337722629,1725987123504,-2044.37,0.00023014,2]
[337722630,1725987123514,-2013.95,0.00023014,2]
[337722631,1725987123525,-53987.64,0.00023014,2]
[337722632,1725987123535,-4713.36,0.00023014,2]
[337722633,1725987123545,-535.49,0.00023014,2]
[337722634,1725987123555,-965.38,0.00023014,2]
[337722635,1725987123566,-806.04,0.00023014,2]
[337722636,1725987123577,-2582.53,0.00023014,2]
[337722637,1725987123587,-677.86,0.00023014,2]
[337722638,1725987123597,-771.86,0.00023014,2]
[337722639,1725987123607,-1718.58,0.00023014,2]
[337722640,1725987123619,-1132.77,0.00023014,2]
[337722641,1725987123745,-2709.96,0.00023014,2]
[337722642,1725987123757,-652.93,0.00023014,2]
[337722643,1725987123767,-5158.88,0.00023014,2]
[337722644,1725987123778,-1065.08,0.00023015,2]
[337722645,1725987123787,-660.04,0.00023015,2]
[337722646,1725987123797,-1568.6,0.00023015,2]
[337722647,1725987123808,-792.17,0.00023015,2]
[337722648,1725987123818,-642.82265982,0.00023015,2]
[337722649,1725987123828,-904.46,0.00023015,2]
[337722650,1725987123837,-625.22,0.00023015,2]
[337722651,1725987123847,-536.45,0.00023015,2]
[337722652,1725987123858,-502.6,0.00023015,2]
[337722653,1725987123868,-1049.86,0.00023015,2]
[337722654,1725987123879,-1076.1,0.00023015,2]
[337722655,1725987123890,-629.08,0.00023015,2]
[337722656,1725987123900,-712.42,0.00023015,2]
[337722657,1725987123910,-852.74,0.00023015,2]
[337722658,1725987123920,-800.96,0.00023015,2]
[337722659,1725987123930,-649.67,0.00023015,2]
[337722660,1725987123941,-588.79,0.00023015,2]
[337722661,1725987123951,-1531.75,0.00023015,2]
[337722662,1725987123961,-677.0,0.00023015,2]
[337722663,1725987123973,-582.35,0.00023015,2]
[337722664,1725987123984,-1661.25,0.00023015,2]
[337722665,1725987123994,-902.12,0.00023015,2]
[337722666,1725987124003,-1161.67,0.00023015,2]
[337722667,1725987124013,-1545.8,0.00023015,2]
[337722668,1725987124023,-1031.96,0.00023015,2]
[337722669,1725987124033,-1005.54,0.00023015,2]
[337722670,1725987124043,-801.25,0.00023015,2]
[337722671,1725987124053,-682.45,0.00023015,2]
[337722672,1725987124062,-1528.95,0.00023015,2]
[337722673,1725987124072,-686.42,0.00023015,2]
[337722674,1725987124084,-3196.6,0.00023015,2]
[337722675,1725987124094,-1720.38,0.00023015,2]
[337722676,1725987124103,-580.2,0.00023015,2]
[337722677,1725987124114,-2053.93,0.00023015,2]
[337722678,1725987124123,-1653.22,0.00023015,2]
[337722679,1725987124133,-2581.4,0.00023015,2]
[337722680,1725987124142,-422.21,0.00023015,2]
[337722681,1725987124153,-582.87,0.00023015,2]
[337722682,1725987124172,-665.52,0.00023015,2]
[337722683,1725987124184,-624.21,0.00023015,2]
[337722684,1725987124194,-796.18,0.00023015,2]
[337722685,1725987124204,-1602.56,0.00023015,2]
[337722686,1725987124215,-1153.39,0.00023015,2]
[337722687,1725987124225,-979.44,0.00023015,2]
[337722688,1725987124235,-629.96,0.00023015,2]
[337722689,1725987124244,-931.29,0.00023015,2]
[337722690,1725987124253,-1387.23,0.00023015,2]
[337722691,1725987124263,-516.8,0.00023015,2]
[337722692,1725987124273,-1249.15,0.00023015,2]
[337722693,1725987124282,-507.63,0.00023015,2]
[337722694,1725987124292,-3108.36,0.00023015,2]
[337722695,1725987124301,-1950.86,0.00023015,2]
[337722696,1725987124311,-513.58,0.00023015,2]
[337722697,1725987124321,-1468.78,0.00023015,2]
[337722698,1725987124331,-4251.41,0.00023015,2]
[337722699,1725987124341,-818.77,0.00023015,2]
[337722700,1725987124351,-380.93504998,0.00023015,2]
[337722701,1725987124361,-547.21,0.00023015,2]
[337722702,1725987124371,-889.36,0.00023015,2]
[337722703,1725987124380,-948.67,0.00023015,2]
[337722704,1725987124390,-653.85,0.00023015,2]
[337722705,1725987124400,-527.0,0.00023015,2]
[337722706,1725987124410,-1596.56,0.00023015,2]
[337722707,1725987124421,-626.02,0.00023015,2]
[337722708,1725987124431,-553.2,0.00023015,2]
[337722709,1725987124441,-848.19,0.00023015,2]
[337722710,1725987124450,-882.16,0.00023015,2]
[337722711,1725987124460,-578.17,0.00023015,2]
[337722712,1725987124471,-841.44,0.00023015,2]
[337722713,1725987124481,-500.0,0.00023015,2]
[337722714,1725987124492,-642.34,0.00023015,2]
[337722715,1725987124502,-791.11,0.00023015,2]
[337722716,1725987124512,-1895.41,0.00023015,2]
[337722717,1725987124522,-980.57,0.00023015,2]
[337722718,1725987124532,-2400.44,0.00023015,2]
[337722719,1725987124543,-1124.28,0.00023015,2]
[337722720,1725987124554,-672.56,0.00023015,2]
[337722721,1725987124564,-571.17,0.00023015,2]
[337722722,1725987124575,-808.61,0.00023015,2]
[337722723,1725987124585,-239.43250059,0.00023015,2]
[337722724,1725987124595,-1199.35,0.00023015,2]
[337722725,1725987124606,-1033.55,0.00023015,2]
[337722726,1725987124617,-1786.34,0.00023015,2]
[337722727,1725987124627,-857.51,0.00023015,2]
[337722728,1725987124637,-614.2963314,0.00023015,2]
[337722729,1725987124647,-742.91,0.00023015,2]
[337722730,1725987124657,-606.58,0.00023015,2]
[337722731,1725987124668,-679.35,0.00023015,2]
[337722732,1725987124677,-678.54,0.00023018,2]
[337722733,1725987124687,-9438.66884527,0.00023127,2]
[337722734,1725987124698,-2206.43598465,0.00023189,2]
[337722735,1725987124709,-250.52,0.0002321,2]
[337722736,1725987124721,-1047.20570142,0.00023285,2]
[337722737,1725987124731,-553.70100423,0.00023287,2]
[337722738,1725987124743,-2363.52298783,0.00023287,2]
[337722739,1725987124754,-977.9659021,0.00023287,2]
[337722740,1725987124765,-1813.48698181,0.00023287,2]
[337722741,1725987124775,-1983.7663094,0.00023287,2]
[337722742,1725987124790,-585.68170374,0.00023287,2]
[337722743,1725987124801,-2056.03707423,0.00023287,2]
[337722744,1725987124811,-1041.85958594,0.00023287,2]
[337722745,1725987124823,-891.09876249,0.00023287,2]
[337722746,1725987124833,-2908.41560181,0.00023287,2]
[337722747,1725987124844,-570.44833874,0.00023287,2]
[337722748,1725987124854,-43984.51326072,0.00023287,2]
[337722749,1725987124865,-2136.14110854,0.00023287,2]
[337722750,1725987124875,-3517.42264774,0.00023287,2]
[337722751,1725987124887,-539.29552045,0.00023287,2]
[337722752,1725987124900,-2575.34447551,0.00023287,2]
[337722753,1725987124910,-7866.04483943,0.00023287,2]
[337722754,1725987124920,-309.49755781,0.00023287,2]
[337722755,1725987124930,-1299.39433079,0.00023287,2]
[337722756,1725987124942,-3508.19991411,0.00023287,2]
[337722757,1725987124952,-1213.30861738,0.00023287,2]
[337722758,1725987124963,-898.14362376,0.00023287,2]
[337722759,1725987124974,-2680.80409316,0.00023287,2]
[337722760,1725987124985,-868.07314508,0.00023287,2]
[337722761,1725987124995,-539.43187061,0.00023287,2]
[337722762,1725987125005,-3969.66147687,0.00023287,2]
[337722763,1725987125016,-1188.16414973,0.00023287,2]
[337722764,1725987125028,-8904.72427618,0.00023287,2]
[337722765,1725987125038,-1301.17886634,0.00023287,2]
[337722766,1725987125050,-1116.79417702,0.00023287,2]
[337722767,1725987125061,-2535.18697883,0.00023287,2]
[337722768,1725987125072,-1737.25416298,0.00023287,2]
[337722769,1725987125083,-1452.91597992,0.00023287,2]
[337722770,1725987125093,-3779.03742607,0.00023287,2]
[337722771,1725987125104,-565.84279457,0.00023288,2]
[337722772,1725987125115,-920.3553127,0.00023288,2]
[337722773,1725987125126,-1099.97456858,0.00023288,2]
[337722774,1725987125136,-1604.84347713,0.00023288,2]
[337722775,1725987125146,-2210.61993685,0.00023288,2]
[337722776,1725987125157,-1189.52931205,0.00023288,2]
[337722777,1725987125167,-663.29954928,0.00023288,2]
[337722778,1725987125178,-1038.71266795,0.00023288,2]
[337722779,1725987125188,-1169.20631281,0.00023288,2]
[337722780,1725987125198,-505.72915087,0.00023288,2]
[337722781,1725987125209,-1822.36480216,0.00023288,2]
[337722782,1725987125219,-720.30295232,0.00023288,2]
[337722783,1725987125230,-2914.01737909,0.00023288,2]
[337722784,1725987125239,-1956.04702453,0.00023288,2]
[337722785,1725987125250,-743.09944221,0.00023288,2]
[337722786,1725987125260,-609.76413891,0.00023288,2]
[337722787,1725987125270,-1713.92259994,0.00023288,2]
[337722788,1725987125280,-971.99849378,0.00023288,2]
[337722789,1725987125290,-2284.61511957,0.00023288,2]
[337722790,1725987125301,-1022.10883896,0.00023288,2]
[337722791,1725987125311,-792.13215319,0.00023288,2]
[337722792,1725987125322,-1816.80294448,0.00023288,2]
[337722793,1725987125332,-721.09505367,0.00023288,2]
[337722794,1725987125342,-753.46692353,0.00023288,2]
[337722795,1725987125353,-1933.7489518,0.00023288,2]
[337722796,1725987125365,-1008.40061503,0.00023288,2]
[337722797,1725987125376,-1583.19786397,0.00023288,2]
[337722798,1725987125387,-1938.29091323,0.00023288,2]
[337722799,1725987125397,-1806.85532112,0.00023288,2]
[337722800,1725987125407,-9481.34485047,0.00023288,2]
[337722801,1725987125418,-589.67642045,0.00023288,2]
[337722802,1725987125428,-1240.81980187,0.00023288,2]
[337722803,1725987125438,-946.82,0.00023288,2]
[337722804,1725987125448,-38864.79786872,0.00023288,2]
[337722805,1725987125458,-2044.52260875,0.00023288,2]
[337722806,1725987125469,-2014.08545064,0.00023288,2]
[337722807,1725987125481,-53987.80308727,0.00023288,2]
[337722808,1725987125492,-4713.50811793,0.00023288,2]
[337722809,1725987125502,-535.55500624,0.00023288,2]
[337722810,1725987125512,-965.40589498,0.00023288,2]
[337722811,1725987125523,-806.23749637,0.00023288,2]
[337722812,1725987125533,-2582.62553748,0.00023288,2]
[337722813,1725987125543,-678.08353963,0.00023288,2]
[337722814,1725987125555,-771.95879944,0.00023288,2]
[337722815,1725987125566,-1718.64372346,0.00023288,2]
[337722816,1725987125576,-1132.90664525,0.00023288,2]
[337722817,1725987125587,-2710.05383346,0.00023288,2]
[337722818,1725987125597,-653.07867275,0.00023288,2]
[337722819,1725987125608,-5158.98170917,0.00023288,2]
[337722820,1725987125621,-1065.19282221,0.00023289,2]
[337722821,1725987125632,-660.08354731,0.00023289,2]
[337722822,1725987125643,-1568.72423745,0.00023289,2]
[337722823,1725987125653,-792.30300503,0.00023289,2]
[337722824,1725987125663,-904.53215373,0.00023289,2]
[337722825,1725987125673,-625.26974505,0.00023289,2]
[337722826,1725987125684,-536.52251947,0.00023289,2]
[337722827,1725987125694,-502.83721415,0.00023289,2]
[337722828,1725987125705,-1049.9262939,0.00023289,2]
[337722829,1725987125715,-1076.27590662,0.00023289,2]
[337722830,1725987125726,-629.15521768,0.00023289,2]
[337722831,1725987125736,-712.45688421,0.00023289,2]
[337722832,1725987125747,-852.78216658,0.00023289,2]
[337722833,1725987125757,-801.14601055,0.00023289,2]
[337722834,1725987125768,-649.81361119,0.00023289,2]
[337722835,1725987125778,-589.02325557,0.00023289,2]
[337722836,1725987125788,-1531.8213546,0.00023289,2]
[337722837,1725987125798,-677.09460805,0.00023289,2]
[337722838,1725987125808,-582.52826449,0.00023289,2]
[337722839,1725987125818,-1661.31080658,0.00023289,2]
[337722840,1725987125829,-902.32,0.00023289,2]
[337722841,1725987125839,-1161.86616919,0.00023289,2]
[337722842,1725987125848,-1545.95807433,0.00023289,2]
[337722843,1725987125859,-1031.99167608,0.00023289,2]
[337722844,1725987125872,-1005.59517735,0.00023289,2]